Cogmind - Beta 13 @@@ ROGUE MODE // 2024.05.01 @ 09:45:15 Player: Wyvric Result: Destroyed by G-47 Trooper with Particle Gun Performance ------------- Evolutions (3) 1500 Regions Visited (14) 2800 Robots Destroyed (132) 660 Value Destroyed (5824) 5824 Prototype IDs (26) 520 Alien Tech Used (0) 0 Bonus (5126) 5126 TOTAL SCORE: 16430 Bonus ------- High Alert Combat Kills 205 Follower Combat Kills 1128 Entered Garrisons 1000 Used RIF Installer 3000 Aligned with FarCom 300 Friendly Fire -507 Cogmind --------- Core Integrity 0/700 Matter 127/300 Energy 100/100 System Corruption 12% Temperature Warm (173) Movement Core (2500) Ox49 Location -7/Garrison Parts ------- > --- POWER (1) -------- (None) > --- PROPULSION (4) --- (None) > --- UTILITY (6) ------ Coolant Injector Cargo Storage Unit > --- WEAPON (2) ------- Flak Gun Flak Gun > --- INVENTORY (30) --- Light Nuclear Core Light Treads Armored Treads Carbon-fiber Leg Armored Wheel High-capacity Storage Unit Huge Storage Unit Trap Scanner Seismic Detector Relay Coupler [NC] (33) Relay Coupler [NC] (30) Relay Coupler [NC] (31) Relay Coupler [Cutter] (31) Relay Coupler [Demolisher] (23) Relay Coupler [Specialist] (17) PD Laser Flak Gun Improved Datajack Improved Datajack Remote Datajack Remote Datajack Field Lobotomy Kit (5) Axe Peak State ------------ > --- POWER ------------ Deuterium Engine > --- PROPULSION ------- Improved Heavy Treads Armored Wheel Armored Wheel > --- UTILITY ---------- Cargo Storage Unit Improved Light Armor Plating Improved Light Armor Plating Relay Coupler [Grunt] Relay Coupler [Brawler] > --- WEAPON ----------- Flak Gun Proton Missile Launcher > --- INVENTORY -------- Light Nuclear Core Improved Treads Armored Treads Improved Heavy Treads Armored Wheel Coolant Injector High-capacity Storage Unit Trap Scanner Seismic Detector Improved Light Armor Plating Improved Light Armor Plating Relay Coupler [NC] Relay Coupler [NC] Relay Coupler [NC] Relay Coupler [NC] Relay Coupler [Cutter] Relay Coupler [Sentry] Relay Coupler [Demolisher] Relay Coupler [Specialist] PD Laser Flak Gun Flak Gun Improved Datajack Improved Datajack Remote Datajack Field Lobotomy Kit Axe [Rating: 54] Favorites ----------- Power Light Ion Engine Engine Light Ion Engine Power Core Light Nuclear Core Propulsion Medium Treads Treads Medium Treads Leg Carbon-fiber Leg Wheel Compact Wheel Utility Cargo Storage Unit Device Seismic Detector Storage Cargo Storage Unit Processor Terrain Scan Processor Hackware Relay Coupler [Sentry] Protection Reactive Plating Weapon Assault Rifle Energy Gun Field Laser Energy Cannon EM Pulse Cannon Ballistic Gun Assault Rifle Ballistic Cannon Bore Cannon Launcher Improved Grenade Launcher Special Weapon Remote Datajack Impact Weapon Heavy Mace Slashing Weapon Katana Special Melee Weapon Improved Datajack Build | -11 -10 -10 -10 -9 -8 -8 -8 -8 -7 -7 -7 -7 -7 -7 ------- Run | Yrd Mat Min Exi Min Mat Gar Mat Gar Fac Gar Fac Gar Fac Gar Slots Evolved 6 | . . . . . 4 . . . 2 . . . . . Power . | . . . . . . . . . . . . . . . Propulsion 2 | . . . . . 2 . . . . . . . . . Utility 4 | . . . . . 2 . . . 2 . . . . . Weapon . | . . . . . . . . . . . . . . . Parts Attached 328 | 6 11 10 2 3 55 57 17 37 22 39 22 32 5 10 Power 16 | 1 1 . 1 . 2 4 1 2 . 3 1 . . . Engine 10 | 1 . . 1 . 1 2 1 1 . 2 1 . . . Core 6 | . 1 . . . 1 2 . 1 . 1 . . . . Reactor . | . . . . . . . . . . . . . . . Propulsion 106 | 2 . 2 . . 30 26 5 5 5 20 8 2 1 . Treads 40 | 2 . . . . 6 10 1 5 . 9 5 1 1 . Leg 22 | . . . . . 10 1 4 . 5 2 . . . . Wheel 44 | . . 2 . . 14 15 . . . 9 3 1 . . Hover . | . . . . . . . . . . . . . . . Flight . | . . . . . . . . . . . . . . . Utility 90 | 1 4 2 1 . 14 8 5 8 11 7 9 13 1 6 Device 20 | . 1 . . . 5 . 1 . 3 . 3 5 . 2 Storage 8 | 1 2 . 1 . 1 . 1 . . 1 . 1 . . Processor 3 | . . . . . 2 1 . . . . . . . . Hackware 21 | . . . . . . 2 1 7 3 2 1 3 1 1 Protection 38 | . 1 2 . . 6 5 2 1 5 4 5 4 . 3 Artifact . | . . . . . . . . . . . . . . . Weapon 116 | 2 6 6 . 3 9 19 6 22 6 9 4 17 3 4 Energy Gun 3 | . . . . . 2 1 . . . . . . . . Energy Cannon 3 | . . 1 . . 2 . . . . . . . . . Ballistic Gun 30 | 2 4 2 . 2 2 2 . 1 . 3 2 6 2 2 Ballistic Cannon 12 | . . . . . . 4 2 4 2 . . . . . Launcher 16 | . 2 2 . 1 1 3 . . 1 2 . 3 . 1 Special Weapon 17 | . . . . . . 1 2 8 1 1 1 2 1 . Impact Weapon 6 | . . 1 . . 2 2 . 1 . . . . . . Slashing Weapon 18 | . . . . . . 3 1 6 2 1 . 5 . . Piercing Weapon . | . . . . . . . . . . . . . . . Special Melee Weapon 11 | . . . . . . 3 1 2 . 2 1 1 . 1 Unidentified Prototypes 1 | . . . . . . . . . . . . 1 . . Corrupted Parts 1 | . . . . . . . . . . 1 . . . . System Corruption 8 | . . . . . . . . . . 8 . . . . Parts Lost 45 | . . 4 . 1 10 5 . 2 5 8 2 . . 8 Power 7 | . . . . . 1 1 . 1 1 1 1 . . 1 Propulsion 20 | . . 1 . . 6 2 . 1 2 4 1 . . 3 Utility 11 | . . 2 . . 2 . . . 2 2 . . . 3 Weapon 7 | . . 1 . 1 1 2 . . . 1 . . . 1 Highest Loss Streak 7 | . . 3 . 1 2 2 . 1 5 4 1 . . 7 To Critical Strikes 2 | . . . . . . 2 . . . . . . . . Average Slot Usage (%) 87 | . 99 99 72 85 87 83 89 89 85 82 91 84 84 80 Engine 6 | . 13 . 13 14 4 7 6 8 . 2 4 7 7 7 Core 2 | . . 14 . . 4 1 2 . 5 1 2 . . . Treads 12 | . 28 15 . . 12 11 2 19 23 12 11 7 7 7 Leg 5 | . . . . . 7 . 25 15 5 9 . . . . Wheel 12 | . . 11 28 28 15 22 7 . . 7 18 15 15 13 Device 2 | . 11 . . . 6 . 1 . 1 2 . 4 4 2 Storage 9 | . 14 14 14 14 9 9 9 9 7 7 7 7 7 7 Hackware 7 | . . . . . . 2 . 16 13 12 22 17 25 22 Protection 6 | . 1 14 1 . 5 10 16 1 12 11 7 7 . 4 Ballistic Gun 7 | . 27 26 . 23 6 . . 1 . 3 9 4 3 9 Ballistic Cannon 1 | . . . . . . 2 10 5 3 . . . . . Special Weapon 1 | . . . . . . . 3 3 2 . 2 . 4 . Impact Weapon 2 | . . . 14 2 5 6 . . . . . . . . Slashing Weapon 2 | . . . . . . . 3 5 8 5 2 5 5 . Special Melee Weapon 1 | . . . . . . 3 . 1 . 4 . 2 1 3 Naked Turns . | . . . . . . . . . . . . . . . Heaviest Build 239 | 13 32 35 206 209 236 239 227 161 180 171 162 166 157 159 Greatest Support 112 | 40 40 40 32 32 112 80 60 112 112 96 83 24 24 24 Greatest Overweight (x) 16 | . . 2 6 6 8 16 5 3 3 4 6 6 6 6 Average Overweight (x) 3 | . . . 4 6 4 6 3 1 1 2 4 6 6 6 Largest Inventory Capacity 35 | 8 15 15 35 35 35 35 35 30 30 30 30 30 30 30 Average Capacity 29 | 6 8 15 32 35 35 35 31 30 30 30 30 30 30 30 Most Carried 35 | 6 10 15 22 23 35 35 35 30 29 30 30 30 30 30 Average Carried 26 | 2 7 13 18 22 32 34 31 28 26 28 29 29 29 28 Final Capacity 35 | 8 15 15 35 35 35 35 30 30 30 30 30 30 30 30 Final Carried 35 | 6 10 14 22 23 32 35 30 29 28 30 29 30 30 25 Class Distribution -------------------- 31% | Hauler-Mutant 30% | Bothacker-Mutant 16% | Botlord-Mutant 15% | Mutant 3% | Hauler-Assassin Dominant Class ---------------- Mutant | -10/Materials Mutant | -10/Mines Hauler-Mutant | -10/Exiles Hauler-Mutant | -9/Mines Hauler-Mutant | -8/Materials Hauler-Mutant | -8/Garrison Bothacker-Mutant | -8/Materials Bothacker-Mutant | -8/Garrison Bothacker-Mutant | -7/Factory Bothacker-Mutant | -7/Garrison Botlord-Mutant | -7/Factory Botlord-Mutant | -7/Garrison Botlord-Mutant | -7/Factory Botlord-Mutant | -7/Garrison Resources | -11 -10 -10 -10 -9 -8 -8 -8 -8 -7 -7 -7 -7 -7 -7 ----------- Run | Yrd Mat Min Exi Min Mat Gar Mat Gar Fac Gar Fac Gar Fac Gar Matter Collected 5408 | 187 164 575 20 37 562 786 382 730 198 592 508 538 99 30 Remotely . | . . . . . . . . . . . . . . . Salvage Created 6165 | . 230 376 . 44 1178 1050 172 241 228 600 450 1296 . 300 Parts 264 | . 24 20 . 7 51 45 11 13 6 29 21 30 . 7 Haulers Intercepted . | . . . . . . . . . . . . . . . Recyclers Shooed 1 | . . . . . . . . . . . 1 . . . Parts Field Recycled . | . . . . . . . . . . . . . . . Retrieved Matter . | . . . . . . . . . . . . . . . Parts Self-Destructed . | . . . . . . . . . . . . . . . Prevented . | . . . . . . . . . . . . . . . Kills | -11 -10 -10 -10 -9 -8 -8 -8 -8 -7 -7 -7 -7 -7 -7 ------- Run | Yrd Mat Min Exi Min Mat Gar Mat Gar Fac Gar Fac Gar Fac Gar Combat Hostiles Destroyed 121 | . 10 12 . 6 27 19 4 6 5 12 9 3 . 8 Melee 17 | . . . . . 8 2 2 3 2 . . . . . Guns 41 | . 6 7 . 1 5 . . . . 5 9 1 . 7 Cannons 13 | . . . . . 3 2 2 3 3 . . . . . AOE 39 | . 4 5 . 5 5 11 . . . 7 . 1 . 1 Classes Destroyed 13 | . 3 1 . . 5 3 1 . . . . . . . Worker 2 | . . . . . 2 . . . . . . . . . Builder 1 | . . . . . . . 1 . . . . . . . Tunneler 1 | . . 1 . . . . . . . . . . . . Recycler 4 | . . . . . 1 . . . . . 3 . . . Watcher 1 | . 1 . . . . . . . . . . . . . Swarmer 39 | . 6 3 . 6 8 2 . . . 8 6 . . . Saboteur 4 | . . . . . . 4 . . . . . . . . Grunt 54 | . 4 9 . . 12 7 2 3 3 4 3 . . 7 Brawler 4 | . . . . . . 3 . . 1 . . . . . Duelist 5 | . . . . . . 2 . . 1 . . 1 . 1 Sentry 8 | . . . . . 5 2 . . . . . 1 . . Hunter 8 | . . . . . 1 . 2 3 . . . 2 . . Heavy 1 | . . . . . 1 . . . . . . . . . Best Kill Streak 7 | . 4 3 . 3 4 6 2 2 2 7 6 2 . 7 Combat Bots Only 7 | . 4 3 . 3 4 6 2 2 2 7 3 2 . 7 Max Kills in Single Turn 3 | . 2 2 . 2 3 3 1 1 1 3 1 1 . 1 Gunslinging 1 | . . 1 . . 1 . . . . . . . . . Exploded 3 | . 2 2 . 2 3 2 . . . 3 . 1 . 1 Melee 1 | . . . . . 1 1 1 1 1 . . . . . Uniques/NPCs Destroyed . | . . . . . . . . . . . . . . . Combat | -11 -10 -10 -10 -9 -8 -8 -8 -8 -7 -7 -7 -7 -7 -7 -------- Run | Yrd Mat Min Exi Min Mat Gar Mat Gar Fac Gar Fac Gar Fac Gar Hostile Shots Fired 909 | . 56 58 . 19 156 44 44 87 109 120 76 33 5 102 Missed 207 | . 13 15 . 5 35 8 8 27 21 35 23 3 2 12 Damage Taken 11131 | . 464 546 . 137 2452 1077 441 661 1293 1309 703 465 72 1511 Core 1305 | . 93 41 . 22 253 68 41 81 122 253 134 37 18 142 Absorbed by Shields 63 | . . . . . . . . 63 . . . . . . Reduced by Siege Mode 125 | . . . . . . . . . . . . 21 . 104 Redirected to Shielding 139 | . . . . . 104 . 35 . . . . . . . Ignored by Resistances 425 | . . . . . . 6 86 66 100 167 . . . . Core Remaining (%) 52 | 100 . . . 37 . . . 19 . . . . . . Volleys Fired 268 | . 28 28 . 6 39 32 12 27 23 16 21 17 4 15 Largest 2 | . 2 2 . 2 2 2 2 2 2 2 2 2 2 2 Hottest 101 | . 40 83 . 40 88 67 101 101 101 56 56 56 56 56 Shots Fired 406 | . 54 51 . 8 47 35 21 37 35 22 44 21 4 27 Gun 212 | . 52 41 . 4 17 2 . 2 . 15 44 8 1 26 Cannon 104 | . . 5 . . 28 10 19 18 24 . . . . . Launcher 45 | . 2 5 . 4 2 17 . . 2 5 . 7 . 1 Special 45 | . . . . . . 6 2 17 9 2 . 6 3 . Kinetic 275 | . 52 41 . 4 9 12 19 20 24 15 44 8 1 26 Thermal 8 | . . . . . 8 . . . . . . . . . Explosive 18 | . 2 5 . 4 2 3 . . . 2 . . . . Electromagnetic 60 | . . 5 . . 28 14 . . 2 3 . 7 . 1 Robot Hit Streak 20 | . 8 9 . 3 17 8 6 9 7 5 6 16 20 18 Robot Miss Streak 11 | . 6 2 . 1 5 4 3 2 3 6 11 3 1 4 Penetration Max 1 | . . . . . . . . 1 1 . . . . . Secondary Targets 8 | . . 1 . . 1 . . . . . 1 . . 5 Max Gunslinging Chain 1 | . . 1 . . 1 . . . . . 1 . . 1 Shots Hit Robots 463 | . 32 32 . 3 80 52 21 34 32 34 38 73 4 28 Core Hits 305 | . 19 21 . 6 27 31 6 10 15 34 53 35 1 47 Critical Kills 8 | . . . . . 4 . 2 2 . . . . . . Critical Parts Destroyed 11 | . 1 . . . 5 . 1 2 2 . . . . . Critical Strikes 27 | . 1 . . . 10 . 4 5 4 3 . . . . Burn 1 | . . . . . 1 . . . . . . . . . Destroy 10 | . 1 . . . . . 3 4 2 . . . . . Blast 1 | . . . . . . . . . 1 . . . . . Smash 9 | . . . . . 9 . . . . . . . . . Sever 6 | . . . . . . . 1 1 1 3 . . . . Melee Attacks 251 | . . . . . 63 50 10 23 19 21 1 62 . 2 Impact 83 | . . . . . 63 20 . . . . . . . . Slashing 138 | . . . . . . 20 10 21 19 20 . 48 . . Piercing . | . . . . . . . . . . . . . . . Sneak Attacks 29 | . . . . . 4 9 1 . . . . 14 . 1 Combat Hostiles 1 | . . . . . . 1 . . . . . . . . Follow-up Attacks 6 | . . . . . . 2 . . 4 . . . . . Damage Inflicted 15510 | . 575 721 . 288 3012 2595 519 558 734 1829 594 3346 26 713 Guns 2528 | . 364 361 . 37 182 13 . . . 199 587 134 26 625 Cannons 1565 | . . 75 . . 547 123 161 337 322 . . . . . Explosions 3652 | . 210 285 . 251 349 1077 . . 102 816 . 474 . 88 Melee 7739 | . . . . . 1934 1382 340 221 310 814 . 2738 . . Ramming 26 | . 1 . . . . . 18 . . . 7 . . . Kinetic 3386 | . 364 361 . 37 97 136 161 337 322 199 587 134 26 625 Thermal 256 | . . . . . 148 . . . . 108 . . . . Explosive 1922 | . 210 285 . 251 286 437 . . . 453 . . . . Electromagnetic 2181 | . . 75 . . 547 640 . . 102 255 . 474 . 88 Impact 2352 | . . . . . 1934 418 . . . . . . . . Slashing 5387 | . . . . . . 964 340 221 310 814 . 2738 . . Piercing . | . . . . . . . . . . . . . . . Highest Corruption 12 | . . 1 1 1 1 11 11 11 4 12 12 12 12 12 Average Corruption 7 | . . 1 1 1 1 9 11 11 4 5 12 12 12 12 Corruption Purged . | . . . . . . . . . . . . . . . Corruption Blocked . | . . . . . . . . . . . . . . . Effects 265 | . . 5 2 8 12 51 19 64 2 24 19 39 9 11 Message Errors 80 | . . 2 1 3 6 16 6 18 . 6 5 12 3 2 Matter Fused 54 | . . 3 . 3 2 17 3 10 . 5 1 9 . 1 Heat Flow Errors 28 | . . . . 1 . 3 1 9 1 3 4 4 1 1 Energy Discharges 28 | . . . . . 1 8 2 5 . 2 2 5 3 . Parts Rejected 5 | . . . . . . 1 . 1 1 1 . 1 . . Parts Fused 2 | . . . . . . 1 . . . . . . 1 . Data Loss (minor) 34 | . . . 1 . 2 3 4 12 . 4 2 4 . 2 Data Loss (major) 10 | . . . . . . 1 . 4 . 1 1 1 . 2 Misfires 9 | . . . . . 1 1 1 2 . . 3 1 . . Alerts 10 | . . . . 1 . . 1 3 . 2 . 2 . 1 Weapon Failures 5 | . . . . . . . 1 . . . 1 . 1 2 Overload Shots . | . . . . . . . . . . . . . . . Overflow Damage 869 | . . . . . 503 161 3 3 . 79 . 120 . . Projectiles 15 | . . . . . 15 . . . . . . . . . Explosions 144 | . . . . . 56 6 . . . 70 . 12 . . Melee 710 | . . . . . 432 155 3 3 . 9 . 108 . . Knockbacks 20 | . . . . . 4 3 4 5 4 . . . . . Impact 6 | . . . . . 4 2 . . . . . . . . Kinetic 13 | . . . . . . 1 4 4 4 . . . . . Secondary 1 | . . . . . . . . 1 . . . . . . Self-Inflicted Damage 549 | . 31 . . 23 200 196 . . . 99 . . . . Shots 21 | . 2 . . 1 4 12 . . . 2 . . . . Rammed 2 | . 1 . . . . . . . . . 1 . . . Targets Rammed 5 | . 1 . . . . . 2 . 1 . 1 . . . Kicked 3 | . . . . . . . 2 . 1 . . . . . Crushed . | . . . . . . . . . . . . . . . Highest Temperature 276 | . 28 200 . 119 198 265 192 254 221 218 242 252 110 276 Average Temperature 74 | . 8 55 . 69 59 60 77 71 122 50 85 99 68 122 Received Heat Transfer 3440 | . 162 270 . . 720 216 45 113 435 282 120 99 36 942 Effects 1 | . . . . . . . . . 1 . . . . . Interference 1 | . . . . . . . . . 1 . . . . . Siege Activations 2 | . . . . . . . . . . . . 1 . 1 Total Turns 54 | . . . . . . . . . . . . 18 . 36 Longest Duration 36 | . . . . . . . . . . . . 18 . 36 Robots Corrupted 6 | . . . . . 1 3 . . . . . 2 . . Combat Hostiles 5 | . . . . . 1 3 . . . . . 1 . . Parts Fried 21 | . . 1 . . 14 4 . . . . . 2 . . Impact Corruptions 18 | . . . . . 16 2 . . . . . . . . Robots Melted . | . . . . . . . . . . . . . . . Combat Hostiles . | . . . . . . . . . . . . . . . Parts Melted 2 | . . . . . 2 . . . . . . . . . Heat Transferred 409 | . . . . . 309 . . . . 100 . . . . Parts Sabotaged 11 | . . . . . . 11 . . . . . . . . Parts Stolen . | . . . . . . . . . . . . . . . Parts Stripped . | . . . . . . . . . . . . . . . Power Chain Reactions 2 | . . . . . 1 . . . . 1 . . . . Alert | -11 -10 -10 -10 -9 -8 -8 -8 -8 -7 -7 -7 -7 -7 -7 ------- Run | Yrd Mat Min Exi Min Mat Gar Mat Gar Fac Gar Fac Gar Fac Gar Peak Influence 1095 | . 157 183 . 208 394 1095 581 698 366 527 319 425 256 229 Initial 533 | . . 33 . . 42 256 533 116 366 72 276 182 222 179 Average 280 | . 71 82 . 114 236 607 335 404 199 237 261 320 204 163 Maximum Alert Level 3 | . . . . 1 1 3 2 2 1 2 1 2 1 1 Low Security (%) 39 | 100 100 100 . 59 33 . 8 7 50 70 19 11 24 95 Level 1 36 | . . . . 40 66 6 70 45 49 4 80 48 75 4 Level 2 21 | . . . . . . 69 21 46 . 24 . 40 . . Level 3 2 | . . . . . . 23 . . . . . . . . Level 4 . | . . . . . . . . . . . . . . . Level 5 . | . . . . . . . . . . . . . . . High Security . | . . . . . . . . . . . . . . . Max Security . | . . . . . . . . . . . . . . . Squads Dispatched 19 | . 3 1 . . 3 . 2 . 5 . 4 . 1 . Investigation 7 | . 1 1 . . 2 . 1 . 1 . 1 . . . Extermination 1 | . . . . . . . . . . . 1 . . . Reinforcement 6 | . 2 . . . 1 . 1 . 1 . . . 1 . Assault . | . . . . . . . . . . . . . . . Garrison 5 | . . . . . . . . . 3 . 2 . . . Intercept . | . . . . . . . . . . . . . . . Searches Triggered . | . . . . . . . . . . . . . . . Construction Impeded 1 | . . . . . . . . . . . . . 1 . Haulers Reinforced . | . . . . . . . . . . . . . . . Active Scanning Responses . | . . . . . . . . . . . . . . . Cargo Convoy Interrupts . | . . . . . . . . . . . . . . . Stealth | -11 -10 -10 -10 -9 -8 -8 -8 -8 -7 -7 -7 -7 -7 -7 --------- Run | Yrd Mat Min Exi Min Mat Gar Mat Gar Fac Gar Fac Gar Fac Gar Distress Signals 10 | . 2 . . . 3 . 1 1 2 . 1 . . . Communications Jammed . | . . . . . . . . . . . . . . . Distress Signals . | . . . . . . . . . . . . . . . Times Spotted 241 | . 18 13 . 7 41 31 9 29 20 18 14 14 8 19 Peak Tracking Total 14 | . 4 3 . 3 6 6 5 7 5 14 4 3 3 12 Tactical Retreats 21 | . 1 1 . . 3 3 . 2 2 4 1 . . 4 Traps | -11 -10 -10 -10 -9 -8 -8 -8 -8 -7 -7 -7 -7 -7 -7 ------- Run | Yrd Mat Min Exi Min Mat Gar Mat Gar Fac Gar Fac Gar Fac Gar Traps Triggered 30 | . . 1 . . 1 11 . 5 . 1 1 9 . 1 Indirectly 9 | . . . . . . 5 . . . . . 4 . . Trap Hack Attempts . | . . . . . . . . . . . . . . . Triggered . | . . . . . . . . . . . . . . . Disarmed . | . . . . . . . . . . . . . . . Reprogrammed . | . . . . . . . . . . . . . . . Reused . | . . . . . . . . . . . . . . . Traps Extracted . | . . . . . . . . . . . . . . . Installed . | . . . . . . . . . . . . . . . Triggered 3 | . . . . . . 1 . . 2 . . . . . Machines | -11 -10 -10 -10 -9 -8 -8 -8 -8 -7 -7 -7 -7 -7 -7 ---------- Run | Yrd Mat Min Exi Min Mat Gar Mat Gar Fac Gar Fac Gar Fac Gar Machines Disabled 15 | . . . . 4 1 3 . 1 1 1 . 3 1 . Max in Single Turn 4 | . . . . 4 1 1 . 1 1 1 . 1 . . Garrison Relay 7 | . . . . . . 3 . 1 . 1 . 2 . . Phase Generator 1 | . . . . . . . . . . 1 . . . . Machines Repaired . | . . . . . . . . . . . . . . . Machines Dismantled . | . . . . . . . . . . . . . . . Machines Sabotaged . | . . . . . . . . . . . . . . . Overloaded Fab Kills . | . . . . . . . . . . . . . . . Hacking | -11 -10 -10 -10 -9 -8 -8 -8 -8 -7 -7 -7 -7 -7 -7 --------- Run | Yrd Mat Min Exi Min Mat Gar Mat Gar Fac Gar Fac Gar Fac Gar Machines Accessed 32 | . 2 2 1 . 8 3 3 3 3 . 3 1 3 . Terminals 19 | . 1 . . . 5 3 2 3 2 . 1 1 1 . Fabricators . | . . . . . . . . . . . . . . . Repair Stations 1 | . . . . . . . . . . . . . 1 . Recycling Units 4 | . 1 . . . 2 . . . . . 1 . . . Scanalyzers . | . . . . . . . . . . . . . . . Garrison Access 5 | . . . . . 1 . 1 . 1 . 1 . 1 . Total Hacks 62 | . 2 2 1 . 20 4 7 5 7 . 5 1 8 . Successful 29 | . 2 2 1 . 8 3 3 3 1 . 2 . 4 . Failed 33 | . . . . . 12 1 4 2 6 . 3 1 4 . Catastrophic 5 | . . . . . 2 . . . 2 . . . 1 . Database Lockouts . | . . . . . . . . . . . . . . . Manual 19 | . 2 . 1 . 10 . . . 4 . . . 2 . Terminals 45 | . 1 . . . 17 4 6 5 6 . 2 1 3 . Fabricators . | . . . . . . . . . . . . . . . Repair Stations 4 | . . . . . . . . . . . . . 4 . Recycling Units 5 | . 1 . . . 2 . . . . . 2 . . . Scanalyzers . | . . . . . . . . . . . . . . . Garrison Access 5 | . . . . . 1 . 1 . 1 . 1 . 1 . Terminal Hacks 16 | . 1 2 1 . 3 3 2 3 . . . . 1 . Part Schematic 1 | . 1 . . . . . . . . . . . . . Prototype ID Bank 1 | . . . . . 1 . . . . . . . . . Open Door 4 | . . 2 . . . 1 . 1 . . . . . . Branch Access Points 1 | . . . . . 1 . . . . . . . . . Emergency Access Points 1 | . . . . . . . . 1 . . . . . . Unreport Threat 3 | . . . . . . . 2 . . . . . 1 . Locate Traps 1 | . . . . . 1 . . . . . . . . . Garrison Registry 1 | . . . . . . 1 . . . . . . . . Patrol Navigation 2 | . . . . . . 1 . 1 . . . . . . Derelict Proto ID Bank 1 | . . . 1 . . . . . . . . . . . Fabricator Hacks . | . . . . . . . . . . . . . . . Repair Station Hacks 1 | . . . . . . . . . . . . . 1 . Scan Component 1 | . . . . . . . . . . . . . 1 . Recycling Unit Hacks 1 | . . . . . . . . . . . 1 . . . Retrieve Matter 1 | . . . . . . . . . . . 1 . . . Scanalyzer . | . . . . . . . . . . . . . . . Garrison Access Hacks 5 | . . . . . 1 . 1 . 1 . 1 . 1 . Unlock Access 5 | . . . . . 1 . 1 . 1 . 1 . 1 . Unauthorized Hacks 6 | . 1 . . . 4 . . . . . . . 1 . Terminals 3 | . . . . . 2 . . . . . . . 1 . Botnet 3 | . . . . . 2 . . . . . . . 1 . Fabricators . | . . . . . . . . . . . . . . . Repair Stations . | . . . . . . . . . . . . . . . Recycling Units 3 | . 1 . . . 2 . . . . . . . . . Tunnel 3 | . 1 . . . 2 . . . . . . . . . Scanalyzers . | . . . . . . . . . . . . . . . Garrison Access . | . . . . . . . . . . . . . . . Data Cores Recovered . | . . . . . . . . . . . . . . . Used . | . . . . . . . . . . . . . . . Hacking Detections 22 | . 1 . . . 6 3 2 2 3 . 2 1 2 . Full Trace Events 2 | . . . . . . . 1 . 1 . . . . . Feedback Events . | . . . . . . . . . . . . . . . Feedback Blocked . | . . . . . . . . . . . . . . . Robot Schematics Acquired . | . . . . . . . . . . . . . . . Robots Built . | . . . . . . . . . . . . . . . Authchips . | . . . . . . . . . . . . . . . Time . | . . . . . . . . . . . . . . . Total Robot Build Rating . | . . . . . . . . . . . . . . . Part Schematics Acquired 1 | . 1 . . . . . . . . . . . . . Parts Built . | . . . . . . . . . . . . . . . Authchips . | . . . . . . . . . . . . . . . Time . | . . . . . . . . . . . . . . . Total Part Build Rating . | . . . . . . . . . . . . . . . Parts Repaired . | . . . . . . . . . . . . . . . Time . | . . . . . . . . . . . . . . . Parts Recycled . | . . . . . . . . . . . . . . . Recycled Matter . | . . . . . . . . . . . . . . . Retrieved Matter . | . . . . . . . . . . . . . . . Retrieved Components . | . . . . . . . . . . . . . . . Parts Scanalyzed . | . . . . . . . . . . . . . . . Part Schematics Acquired . | . . . . . . . . . . . . . . . Parts Damaged . | . . . . . . . . . . . . . . . Bothacking | -11 -10 -10 -10 -9 -8 -8 -8 -8 -7 -7 -7 -7 -7 -7 ------------ Run | Yrd Mat Min Exi Min Mat Gar Mat Gar Fac Gar Fac Gar Fac Gar Used RIF Installer 6 | . . . . . . 1 . 1 . 2 . 1 . 1 Command Fork 1 | . . . . . . . . . . . . 1 . . Threat Obfuscator 1 | . . . . . . . . . . 1 . . . . Robot Detection 1 | . . . . . . . . . . . . . . 1 Patrol Navigation 1 | . . . . . . . . 1 . . . . . . Autooverride 1 | . . . . . . . . . . 1 . . . . Robots Hacked 32 | . . . . . . 5 1 12 3 1 1 6 2 1 Non-combat 3 | . . . . . . . . . 2 . . . 1 . Combat 29 | . . . . . . 5 1 12 1 1 1 6 1 1 Autooverrided 2 | . . . . . . . . . . . . 2 . . Robot Hacks Applied 38 | . . . . . . 5 2 14 5 1 1 6 3 1 ignore_repairs 1 | . . . . . . . . . . . . . 1 . map_walls 1 | . . . . . . . . . . . . . 1 . purge_threat 2 | . . . . . . . . . 2 . . . . . find_garrison 2 | . . . . . . . 1 . . . . . 1 . amplify_resonance 1 | . . . . . . . . 1 . . . . . . wipe_record 4 | . . . . . . 1 . 2 . . . 1 . . disable_weapons 1 | . . . . . . 1 . . . . . . . . overwrite_iff 5 | . . . . . . 1 . 2 1 . . 1 . . streamctrl_high 4 | . . . . . . 1 . 1 . . 1 1 . . formatsys_low 1 | . . . . . . . . . 1 . . . . . formatsys_high 16 | . . . . . . 1 1 8 1 1 . 3 . 1 Relay Couplers Released 34 | . . . . . . 16 . 4 . 5 . 9 . . Machine Destruction 31 | . . . . . . 13 . 4 . 5 . 9 . . Programmers 3 | . . . . . . 3 . . . . . . . . Attached 21 | . . . . . . 2 1 7 3 2 1 3 1 1 Fabnet Peak Effective % . | . . . . . . . . . . . . . . . Robots Rewired 9 | . . . . . . 6 . . . . . 3 . . Allies Hacked . | . . . . . . . . . . . . . . . Hacks Repelled . | . . . . . . . . . . . . . . . Allies | -11 -10 -10 -10 -9 -8 -8 -8 -8 -7 -7 -7 -7 -7 -7 -------- Run | Yrd Mat Min Exi Min Mat Gar Mat Gar Fac Gar Fac Gar Fac Gar Total Allies 44 | . . . . 2 . 11 1 12 3 1 1 9 3 1 Largest Group 7 | . . . . 2 1 6 1 6 1 1 1 4 7 5 Highest-Rated Group 157 | . . . . 38 7 71 15 94 32 32 32 64 157 110 Highest-Rated Ally 39 | . . . . 31 7 39 15 25 32 32 32 32 31 32 Total Orders 24 | . . . . . . . . 2 4 1 4 2 5 6 STAY 9 | . . . . . . . . 1 . 1 . 1 3 3 FOLLOW 7 | . . . . . . . . 1 . . . 1 2 3 EXPLORE 4 | . . . . . . . . . 2 . 2 . . . RETURN 4 | . . . . . . . . . 2 . 2 . . . Ally Attacks 243 | . . . . 10 . 75 2 48 4 5 2 22 56 19 Total Damage 3529 | . . . . 148 . 723 51 865 141 174 61 372 708 286 Kills 41 | . . . . 4 . 7 . 11 3 . 1 5 8 2 Allies Corrupted . | . . . . . . . . . . . . . . . Allies Melted 1 | . . . . . . 1 . . . . . . . . Intel | -11 -10 -10 -10 -9 -8 -8 -8 -8 -7 -7 -7 -7 -7 -7 ------- Run | Yrd Mat Min Exi Min Mat Gar Mat Gar Fac Gar Fac Gar Fac Gar Robot Analysis Total . | . . . . . . . . . . . . . . . Derelict Logs Recovered 1 | . . 1 . . . . . . . . . . . . Drone Launches 4 | . . . . . . . . . 2 . 2 . . . Drone Recoveries 3 | . . . . . . . . . 2 . 1 . . . Exploration | -11 -10 -10 -10 -9 -8 -8 -8 -8 -7 -7 -7 -7 -7 -7 ------------- Run | Yrd Mat Min Exi Min Mat Gar Mat Gar Fac Gar Fac Gar Fac Gar Turns Passed 12684 | 78 934 933 728 692 2233 1373 435 1857 478 902 542 1078 195 226 Spaces Moved 4838 | 41 310 583 410 261 634 519 143 636 130 336 256 405 96 78 Core 1 | 1 . . . . . . . . . . . . . . Treads 1296 | 40 310 141 . . 165 23 . 380 105 112 20 . . . Legs 479 | . . . . . 10 . 88 256 25 100 . . . . Wheels 3062 | . . 442 410 261 459 496 55 . . 124 236 405 96 78 Hover . | . . . . . . . . . . . . . . . Flight . | . . . . . . . . . . . . . . . Fastest Speed 50 | 50 160 100 100 190 153 147 165 240 240 135 135 180 180 180 Average Speed 190 | 157 160 127 172 190 204 194 223 250 247 207 160 180 180 180 Slowest Speed 400 | 160 160 240 190 190 400 400 260 330 330 260 242 180 180 180 Overloaded Moves . | . . . . . . . . . . . . . . . Propulsion Burnouts . | . . . . . . . . . . . . . . . Robots Hopped . | . . . . . . . . . . . . . . . Cave-ins Triggered 1 | . . . . . . 1 . . . . . . . . Exploration Rate (%) 42 | 4 57 98 78 49 65 55 21 81 9 46 10 40 5 14 Regions Visited 14 Branch Regions 3 Pre-discovered Areas 3 | . 1 . . . 2 . . . . . . . . . Known Exits Taken 5 | . . . . . 1 . 1 . 1 . 1 . 1 . Unknown Exits Taken 5 | 1 1 1 1 1 . . . . . . . . . . Scrap Searched 1 | . . 1 . . . . . . . . . . . . Spaces Dug 64 | . . . . 11 11 19 . . 2 19 . 2 . . Terrain Destroyed 197 | . 8 29 . 23 72 31 8 . 3 21 . 2 . . Melee 18 | . . . . . 11 3 . . 2 . . 2 . . Projectile 9 | . . . . . . . 8 . 1 . . . . . AOE 170 | . 8 29 . 23 61 28 . . . 21 . . . . Terrain Rammed . | . . . . . . . . . . . . . . . Walls Destroyed . | . . . . . . . . . . . . . . . Machines Disabled . | . . . . . . . . . . . . . . . Actions | -11 -10 -10 -10 -9 -8 -8 -8 -8 -7 -7 -7 -7 -7 -7 --------- Run | Yrd Mat Min Exi Min Mat Gar Mat Gar Fac Gar Fac Gar Fac Gar Total 7556 | 52 696 723 434 449 1414 791 222 835 225 483 339 649 113 131 Wait 1424 | . 337 84 . 177 547 28 14 79 23 29 12 66 3 25 Move 4826 | 40 309 582 409 260 634 517 143 634 130 334 256 404 96 78 Hop . | . . . . . . . . . . . . . . . Pick Up 220 | 6 5 12 19 3 45 46 10 10 7 28 11 14 3 1 Fast Attach 38 | 6 1 . 1 . 1 8 1 6 . 5 4 5 . . Attach 82 | . . 5 . 2 23 17 3 2 9 12 3 4 1 1 Detach 18 | . . 2 . . 6 4 . 1 2 . . 3 . . Swap 208 | . 10 5 1 1 31 32 13 29 13 22 15 23 4 9 Drop 146 | . 5 5 4 . 25 30 14 9 2 16 15 19 2 . Fire 268 | . 28 28 . 6 39 32 12 27 23 16 21 17 4 15 Melee 245 | . . . . . 63 48 10 23 15 21 1 62 . 2 Ram . | . . . . . . . . . . . . . . . Kick 3 | . . . . . . . 2 . 1 . . . . . Crush 2 | . 1 . . . . . . . . . 1 . . . Escape Stasis 73 | . . . . . . 28 . 13 . . . 32 . . Rewire 3 | . . . . . . 1 . 2 . . . . . . Trap . | . . . . . . . . . . . . . . . Miscellaneous . | . . . . . . . . . . . . . . . Route ------- -11/Scrapyard -10/Materials -10/Mines (discovered 4 exits: [*Mat x2] / *Exi / Sub) -10/Exiles -9/Mines -8/Materials (discovered 2 exits: *Fac / Gar) -8/Garrison (discovered 3 exits: *Mat x3) -8/Materials (discovered 2 exits: *Fac / Gar) -8/Garrison (discovered 3 exits: *Fac x3) -7/Factory -7/Garrison -7/Factory -7/Garrison (discovered 2 exits: [*Fac] / *Fac) -7/Factory -7/Garrison History --------- Turn | Location | Event 13 | -11/Scrapyard | Discovered new exit (range 16) 79 | -11/Scrapyard | Entered Materials 311 | -10/Materials | Build established: Mutant 988 | -10/Materials | Discovered new exit (range 16) 1013 | -10/Materials | Entered Mines 1072 | -10/Mines | Discovered new exit (range 9) 1101 | -10/Mines | Met a Derelict bent on vengeance 1229 | -10/Mines | Met a Derelict shopkeep closing up shop 1333 | -10/Mines | Met a Derelict who couldn't figure out how to use a Trap Extractor 1379 | -10/Mines | Discovered new exit (range 15) 1519 | -10/Mines | Identified exit to Subcaves 1600 | -10/Mines | Deemed a non-threat by the Exiles lab entrance 1600 | -10/Mines | Discovered new exit (range 5) 1844 | -10/Mines | Core integrity fell below 50% 1880 | -10/Mines | Lost 3 parts (1n1u1w) 1946 | -10/Mines | Entered Exiles 1977 | -10/Exiles | Met 8R-AWN 1998 | -10/Exiles | Met EX-HEX 2101 | -10/Exiles | Met EX-DEC 2138 | -10/Exiles | Visited The Gauntlet 2341 | -10/Exiles | Build established: Hauler-Mutant 2391 | -10/Exiles | Met EX-BIN 2412 | -10/Exiles | Aligned with FarCom system 2414 | -10/Exiles | Given EX-Vault access code 2462 | -10/Exiles | Opened EX-Vault 2477 | -10/Exiles | Found 0b10 Alert Chip 2484 | -10/Exiles | Found Supersonic Drone Bay 2488 | -10/Exiles | Found Field Lobotomy Kit 2529 | -10/Exiles | Warned to stay clear of 0b10 Research branches 2542 | -10/Exiles | Exiles lab attacked by MAIN.C 2649 | -10/Exiles | Discovered new exit (range 14) 2674 | -10/Exiles | Stole three prototypes: 0b10 Alert Chip, Supersonic Drone Bay, Field Lobotomy Kit 2674 | -10/Exiles | Entered Mines 3170 | -9/Mines | Assembled infested the area 3303 | -9/Mines | Discovered new exit (range 5) 3366 | -9/Mines | Entered Materials 3366 | -8/Materials | Accompanied by 1 ally 3366 | -8/Materials | Evolved 4 slots: Propulsion x2, Utility x2 4946 | -8/Materials | Discovered new exit (range 13) 5058 | -8/Materials | Build established: Hauler-Skirmisher 5404 | -8/Materials | Build established: Hauler-Assassin 5599 | -8/Materials | Identified exit to Garrison 5599 | -8/Materials | Entered Garrison 5624 | -8/Garrison | Core integrity fell below 50% 5669 | -8/Garrison | Triggered checkpoint 5797 | -8/Garrison | Build established: Hauler-Mutant 5863 | -8/Garrison | Triggered checkpoint 5911 | -8/Garrison | Lost 5 allies 5931 | -8/Garrison | Triggered checkpoint 5981 | -8/Garrison | Installed Relay Interface Framework 6025 | -8/Garrison | Discovered new exit (range 10) 6081 | -8/Garrison | Triggered checkpoint 6323 | -8/Garrison | Rescued a captive Derelict 6324 | -8/Garrison | Rescued a captive Derelict 6341 | -8/Garrison | Garrison Relay disabled 6517 | -8/Garrison | Triggered checkpoint 6587 | -8/Garrison | Triggered checkpoint 6668 | -8/Garrison | Crushed by falling debris 6668 | -8/Garrison | System corruption reached 10% 6697 | -8/Garrison | Discovered new exit (range 70) 6697 | -8/Garrison | Discovered new exit (range 30) 6697 | -8/Garrison | Discovered new exit (range 32) 6779 | -8/Garrison | Garrison Relay disabled 6899 | -8/Garrison | Garrison Relay disabled 6972 | -8/Garrison | Entered Materials 7126 | -8/Materials | Build established: Bothacker-Mutant 7331 | -8/Materials | Discovered new exit (range 15) 7407 | -8/Materials | Identified exit to Garrison 7407 | -8/Materials | Entered Garrison 7589 | -8/Garrison | Garrison Relay disabled 7887 | -8/Garrison | Triggered checkpoint 7993 | -8/Garrison | Discovered new exit (range 12) 8267 | -8/Garrison | Triggered checkpoint 8457 | -8/Garrison | Triggered checkpoint 8587 | -8/Garrison | Discovered new exit (range 15) 8672 | -8/Garrison | Expanded RIF knowledge: Patrol Navigation 8763 | -8/Garrison | Rescued a captive Derelict 8913 | -8/Garrison | Triggered checkpoint 8955 | -8/Garrison | Lost 3 allies 9135 | -8/Garrison | Triggered checkpoint 9140 | -8/Garrison | Discovered new exit (range 15) 9193 | -8/Garrison | Core integrity fell below 20% 9264 | -8/Garrison | Entered Factory 9264 | -7/Factory | Evolved 2 slots: Utility x2 9266 | -7/Factory | FarCom data flow suspended 9525 | -7/Factory | Garrison activated, responded to threat 9666 | -7/Factory | Lost 5 parts (1p2n2u) 9742 | -7/Factory | Identified exit to Garrison 9742 | -7/Factory | Entered Garrison 9884 | -7/Garrison | Triggered checkpoint 9991 | -7/Garrison | Expanded RIF knowledge: Autooverride 10039 | -7/Garrison | Phase Generator disabled 10070 | -7/Garrison | Lost 4 parts (2n2u) 10179 | -7/Garrison | Garrison Relay disabled 10372 | -7/Garrison | Triggered checkpoint 10373 | -7/Garrison | Triggered checkpoint 10405 | -7/Garrison | Core integrity fell below 50% 10450 | -7/Garrison | Destroyed 7 combat bots 10499 | -7/Garrison | System corruption reached 10% 10565 | -7/Garrison | Discovered new exit (range 12) 10596 | -7/Garrison | Expanded RIF knowledge: Threat Obfuscation 10644 | -7/Garrison | Entered Factory 10894 | -7/Factory | Build established: Botlord-Mutant 11070 | -7/Factory | Garrison activated, responded to threat 11186 | -7/Factory | Identified exit to Garrison 11186 | -7/Factory | Entered Garrison 11410 | -7/Garrison | Triggered checkpoint 11501 | -7/Garrison | Garrison Relay disabled 11634 | -7/Garrison | Triggered checkpoint 11647 | -7/Garrison | Triggered checkpoint 11786 | -7/Garrison | Triggered checkpoint 11823 | -7/Garrison | Garrison Relay disabled 11858 | -7/Garrison | Triggered checkpoint 11932 | -7/Garrison | Discovered new exit (range 5) 12043 | -7/Garrison | Discovered new exit (range 10) 12109 | -7/Garrison | Expanded RIF knowledge: Command Fork 12264 | -7/Garrison | Entered Factory 12264 | -7/Factory | Accompanied by 4 allies 12366 | -7/Factory | Allied Derelicts emerged from ambush trap array 12382 | -7/Factory | Core integrity fell below 20% 12459 | -7/Factory | Identified exit to Garrison 12459 | -7/Factory | Entered Garrison 12459 | -7/Garrison | Accompanied by 5 allies 12517 | -7/Garrison | Expanded RIF knowledge: Robot Detection 12613 | -7/Garrison | Triggered checkpoint 12652 | -7/Garrison | Lost 4 allies 12685 | -7/Garrison | Destroyed by G-47 Trooper with Particle Gun Last Messages --------------- 12665_ Arm. Wheel destroyed. 12665_ Imp. Light Armor Plating destroyed. 12666_ G-47 Trooper destroyed. 12666_ Switching to secondary target: G-47 Trooper. 12667_ Critical hit (Burn: +37). 12669_ G-47 Trooper destroyed. 12672_ System corrupted: Flak Gun jammed. 12675_ Imp. Light Armor Plating destroyed. 12681_ L-41 Fighter destroyed. 12681_ Switching to secondary target: G-47 Trooper. 12683_ =/4JYE4Q:=S1T>VGISNKO5AZX 12683_ Imp. Light Armor Plating destroyed. 12683_ Imp. Heavy Treads destroyed. 12683_ Deuterium Engine destroyed. 12684_ G-47 Trooper destroyed. 12684_ Switching to secondary target: G-47 Trooper. 12685_ Critical hit (Burn: +37). Map ----- +----------------------------------------------------+ | ?????????????????????????????????????????????????? | | ?????????????????????????????????????????????????? | | ?????????????????????????????????????????????????? | | ??????????????????????"!!!???????????????????????? | | ?????????????????????" ???????????????????????? | | ?????????????????????! ???????????????????????? | | ?????????????????????! ???????????????????????? | | ?????????????????????! ???????????????????????? | | ?????????????????????? ???????????????????????? | | ?????????????????????? ???????????????????????? | | ?????????????????????? ???????????????????????? | | ?????????????????????? ???????????????????????? | | ??????????????????????# #???????????????????????? | | ??????????????????????# #???????????????????????? | | ????????????????####### #???????????????????????? | | ???????????###### ## #???????????????????????? | | ???????????#"""## ## #???????????????????????? | | ???????????#" "## ## #???????????????????????? | | ???????????#" "#### ## #???????????????????????? | | ???????????#" "#??# ## #???????????????????????? | | ???????????#^^ #??# ## #???????????????????????? | | ???????????## ##??# ## #???????????????????????? | | ???########## ##### ## #???????????????????????? | | ???# =%% [ ##!!####????????????????????? | | ???# ############## gg%% #????????????????????? | | ??????????????????# g @%=#????????????????????? | | ??????????????????##+#####g=#????????????????????? | | ?????????????????????????#!%#????????????????????? | | ?????????????????????????# #????????????????????? | | ?????????????????????????# #????????????????????? | | ?????????????????????????# #????????????????????? | | ?????????????????????????# #?#####??????????????? | | ?????????????????????????# #? * #???#??????????? | | ????????????????????????## ## %[ ## ##?????????? | | ????????????????????????# [!! = *%###???????? | | ????????????????????????# [%=%% != ????? | | ????????????????????????# * =! % ????? | | ????????????????????????# ##=[ ## ####??????? | | ????????????????????????# #?% #??? #?????????? | | ??????????????????????? ?? ?????????????? | | ??????????????????????# ?? ???????????? | | ??????????????????????# ^??? ?????????? | | ??????????????????????# ?? ????????? | | ??????????????????????### ##??? ## ##????????? | | ????????????????????????# #???? #? #?????????? | | ???????????????????????? ????? ?? ????????? | | ???????????????????????? ????? ??? ????????? | | ???????????????????????## ?????? ???##????????? | | ????????????????????????## #??????#?????????????? | | ?????????????????????????? ?????????????????????? | +----------------------------------------------------+ Best States ------------- Heat Dissipation 59 Coolant Potential 65 Energy Generation 18 Energy Capacity 275 Matter Stores 300 Matter Capacity 300 Sight Range 16 Terrain Scan Range 16 Terrain Scan Density 85 Armor Coverage 900 Resistance: KI 20 Propulsion Shielding 33 Weapon Shielding 66 Evasion (%) 40 Targeting Accuracy 8 Recoil Reduction 4 Relay Coupler Types 4 Relay Coupler Value 84 Item Schematics ----------------- Cargo Storage Unit | -10/Materials | Hacked Robot Schematics ------------------ None Fabricated ------------ Nothing Alien Tech Used ----------------- None Achievements -------------- None Challenges ------------ None Game ------ Seed BurstRecoilBarrier Manual? 0 Play Time 02:09:56 Cumulative 271.0 hours Start 2024.05.01 @ 07:33:47 End 2024.05.01 @ 09:45:15 Sessions 1 Manual Loads 0 Difficulty Rogue Special Mode None Game No. 68 Rogue 68 Adventurer 0 Explorer 0 Win Type - Total 16 Types 8/3/3/1/1/0/0/0/0 Lore% 56 Gallery% 78 Achievement% 69 Wizard Run 0 Options --------- Layout 1 ASCII 0 Keyboard 0 Movement Numpad Keybinds 0 Fullscreen 1 Font 24/Smallcaps Map View 50x35 Zoom Use 3% Tactical HUD 1 Map Filters NONE Filters NONE Steam 1 RUN: 666ebad3-c023-4e58-915e-db2a3c8e91ba